bitfinex-derivatives/quotes_SOLF0:USTF0_20250318
["timestamp","ask_amount","ask_price","bid_price","bid_amount"]
[1742319278197,8.1910355,122.99,122.97,0.05679936]
[1742319278699,8.1328,122.98,122.97,0.05679936]
[1742319279495,0.0584355,122.99,122.92,317.6024349]
[1742319280097,8.1345,122.96,122.92,317.6024349]
[1742319280293,32.8523,123.0,122.92,317.6024349]
[1742319280498,8.1332,122.98,122.95,8.1344]
[1742319280697,0.05343891,122.95,122.93,0.05286697]
[1742319280992,0.06041986,122.95,122.93,0.05286697]
[1742319281196,0.06041986,122.95,122.94,8.1355]
[1742319282393,0.06041986,122.95,122.93,0.05286697]
[1742319283594,8.19561986,122.95,122.93,0.05286697]
[1742319284102,8.1355,122.94,122.93,0.05286697]
[1742319285202,8.19551986,122.95,122.93,0.05286697]
[1742319285503,8.19551986,122.95,122.93,8.18846697]
[1742319285700,0.06041986,122.95,122.93,0.05286697]
[1742319286100,0.06041986,122.95,122.94,38.7755]
[1742319286706,1.986e-05,122.95,122.94,38.7755]
[1742319288503,4.1225,123.0,122.99,8.1322]
[1742319288708,2.0502,123.0,122.99,8.1322]
[1742319288905,2.0832,123.03,122.98,268.4]
[1742319289909,0.0581543,123.02,122.99,0.05874046]
[1742319290107,0.0581543,123.02,123.0,8.1309]
[1742319290512,0.0581543,123.02,122.99,0.05874046]
[1742319290702,0.0581543,123.02,123.01,8.1308]
[1742319300223,5.43e-05,123.02,123.01,8.1308]
[1742319300408,2.0348,123.06,123.05,8.1282]
[1742319300811,40.7386,123.1,123.03,59.59204134]
[1742319301012,42.899,123.1,123.04,268.3]
[1742319301413,12.379,123.1,123.04,268.3]
[1742319301615,0.05547026,123.08,123.06,0.06234332]
[1742319302920,0.05547026,123.08,123.06,30.58234332]
[1742319304725,0.05547026,123.08,123.06,0.06234332]
[1742319305118,8.1269,123.07,123.06,0.06234332]
[1742319305322,0.05547026,123.08,123.04,268.3]
[1742319305524,2.1415,123.06,123.04,268.3]
[1742319306415,2.1415,123.06,123.04,268.3591534]
[1742319306924,2.1415,123.06,123.04,276.4876534]
[1742319307425,2.1415,123.06,123.05,8.1282]
[1742319307924,8.18207026,123.08,123.05,8.1281]
[1742319308124,8.1269,123.07,123.05,8.1281]
[1742319309013,0.05547026,123.08,123.06,8.1275]
[1742319309618,0.05547026,123.08,123.07,8.1269]
[1742319312829,34.6819,123.14,123.1,8.1247]
[1742319313223,34.6619,123.14,123.1,8.1247]
[1742319313527,4.2219,123.14,123.1,8.1247]
[1742319314027,2.18892025,123.12,123.1,8.18101934]
[1742319315031,0.06172025,123.12,123.11,17.20007297]
[1742319315720,2.0551,123.16,123.11,39.51587297]
[1742319315922,4.161,123.18,123.12,9.07587297]
[1742319316121,8.1204,123.17,123.12,9.07587297]
[1742319316324,8.1204,123.17,123.14,8.1219]
[1742319316727,12.2809,123.18,123.15,8.1212]
[1742319317121,12.2809,123.18,123.14,0.05846657]
[1742319317321,4.161,123.18,123.14,30.49846657]
[1742319318033,4.161,123.18,123.14,39.57433954]
[1742319318631,2.082,123.22,123.15,9.07587297]
[1742319318826,36.8002,123.22,123.16,9.07587297]
[1742319319128,36.8202,123.22,123.17,30.44]
[1742319319334,36.8202,123.22,123.18,0.05573712]
[1742319319518,36.8202,123.22,123.16,268.16]
[1742319319721,8.1203,123.17,123.16,268.16]
[1742319319922,30.44,123.19,123.14,30.44]
[1742319320121,30.44,123.19,123.13,26.27434594]
[1742319320427,30.44,123.19,123.13,18.15174594]
[1742319320628,0.05616082,123.17,123.15,0.05268573]
[1742319321331,8.1209,123.16,123.15,0.05268573]
[1742319321630,0.05616082,123.17,123.15,0.05268573]
[1742319321830,8.17676082,123.17,123.15,0.05268573]
[1742319322032,0.05616082,123.17,123.15,0.05268573]
[1742319322434,30.42,123.16,123.12,268.1]
[1742319322628,2.1714,123.15,123.12,268.1]
[1742319322829,8.1222,123.14,123.12,268.1]
[1742319323331,2.1714,123.15,123.12,268.1]
[1742319323533,8.17827922,123.14,123.12,268.16004742]
[1742319324733,30.38,123.13,123.07,18.15174594]
[1742319324939,30.38,123.13,123.06,298.44]
[1742319325131,8.1246,123.11,123.08,8.1257]
[1742319325334,32.4173,123.13,123.06,298.44]
[1742319325730,32.4173,123.13,123.07,18.15174594]
[1742319325928,0.05571308,123.11,123.09,18.15174594]
[1742319326131,0.05571308,123.11,123.09,48.53174594]
[1742319326334,0.05571308,123.11,123.1,8.1246]
[1742319328235,0.05571308,123.11,123.09,56.7143053]
[1742319329235,0.05571308,123.11,123.1,8.1249]
[1742319330235,1.308e-05,123.11,123.1,8.1249]
[1742319331435,2.0373,123.17,123.1,8.12]
[1742319331637,10.1579,123.17,123.12,18.15174594]
[1742319331839,2.0373,123.17,123.13,30.36]
[1742319332540,0.0576809,123.16,123.14,0.05326434]
[1742319333239,0.0576809,123.16,123.14,8.17496434]
[1742319333442,0.0576809,123.16,123.14,0.05326434]
[1742319334142,0.0576809,123.16,123.15,8.1216]
[1742319334334,0.0576809,123.16,123.14,0.05326434]
[1742319334937,8.1785809,123.16,123.14,8.17516434]
[1742319335642,8.1216,123.15,123.14,0.05326434]
[1742319339545,8.1229,123.13,123.12,268.04]
[1742319340447,8.1226,123.14,123.12,268.04]
[1742319341848,42.5138,123.15,123.12,268.04]
[1742319342043,4.1319,123.15,123.12,268.04]
[1742319342249,4.1319,123.15,123.13,8.1224]
[1742319342549,12.2536,123.15,123.13,8.1224]
[1742319342941,12.2537,123.15,123.12,276.1633]
[1742319343144,4.1319,123.15,123.12,268.04]
[1742319343542,8.1222,123.14,123.12,268.04]
[1742319343747,4.1319,123.15,123.12,268.04]
[1742319344646,8.1228,123.14,123.12,268.04]
[1742319344845,4.1319,123.15,123.12,268.04]
[1742319345449,8.1227,123.14,123.12,276.1635]
[1742319346054,2.0238,123.15,123.12,268.04]
[1742319346653,0.0576809,123.16,123.14,8.1222]
[1742319346847,0.0576809,123.16,123.12,316.43174594]
[1742319347051,0.0576809,123.16,123.14,0.05996901]
[1742319347752,0.0576809,123.16,123.15,8.1216]
[1742319349244,0.0576809,123.16,123.14,8.18186901]
[1742319349446,0.0576809,123.16,123.14,0.05996901]
[1742319350053,0.0576809,123.16,123.15,8.1216]
[1742319351257,0.0576809,123.16,123.14,8.18186901]
[1742319351458,0.0576809,123.16,123.14,0.05996901]
[1742319351957,0.0576809,123.16,123.15,8.1216]
[1742319352958,0.0576809,123.16,123.14,0.05996901]
[1742319353557,0.0576809,123.16,123.15,8.1216]
[1742319355158,0.0576809,123.16,123.14,8.18186901]
[1742319355660,0.0576809,123.16,123.15,8.1216]
[1742319356457,0.0576809,123.16,123.14,8.18196901]
[1742319356757,0.0576809,123.16,123.14,0.05996901]
[1742319358960,0.0576809,123.16,123.14,8.18186901]
[1742319359462,8.1788809,123.16,123.14,0.05996901]
[1742319359856,0.0576809,123.16,123.14,0.05996901]
[1742319360062,8.1216,123.15,123.14,0.05996901]
[1742319361567,8.1229,123.14,123.12,268.04]
[1742319361862,2.0472,123.15,123.13,8.1228]
[1742319362256,2.0472,123.15,123.12,268.04]
[1742319362461,0.0576809,123.16,123.12,316.31174594]
[1742319362660,0.0576809,123.16,123.12,316.36689679]
[1742319363969,0.0576809,123.16,123.14,8.122]
[1742319364166,0.0576809,123.16,123.12,316.36689679]
[1742319364569,8.1792809,123.16,123.13,8.1225]
[1742319365060,0.0576809,123.16,123.12,309.82088917]
[1742319365261,0.0576809,123.16,123.12,317.94408917]
[1742319365865,0.0576809,123.16,123.12,279.70088917]
[1742319366170,30.1,123.15,123.12,268.09515085]
[1742319366470,38.2219,123.15,123.13,8.1229]
[1742319367167,8.1226,123.14,123.12,268.09515085]
[1742319367370,30.1,123.15,123.12,0.05515085]
[1742319367570,1.997,123.14,123.12,0.05515085]
[1742319367771,8.1229,123.13,123.12,0.05515085]
[1742319369675,10.1196,123.14,123.12,8.17855085]
[1742319370573,30.1,123.15,123.12,0.05515085]
[1742319370767,0.0576809,123.16,123.12,0.05515085]
[1742319371667,8.1790809,123.16,123.13,8.1225]
[1742319371873,0.0576809,123.16,123.12,30.13515085]
[1742319373163,0.0576809,123.16,123.15,8.1216]
[1742319374974,0.0576809,123.16,123.15,38.2016]
[1742319375277,0.0576809,123.16,123.15,56.33613732]
[1742319375678,0.0106809,123.16,123.15,56.33613732]
[1742319376376,2.1733,123.21,123.19,8.1187]
[1742319376677,2.1733,123.21,123.15,48.21453732]
[1742319377468,0.05420127,123.19,123.17,0.0627297]
[1742319377671,0.05420127,123.19,123.18,8.1196]
[1742319377971,0.05420127,123.19,123.18,38.1996]
[1742319382378,0.05420127,123.19,123.18,30.08]
[1742319382677,0.05420127,123.19,123.17,38.2228297]
[1742319382978,0.05420127,123.19,123.17,30.1027297]
[1742319383175,0.05420127,123.19,123.17,0.0627297]
[1742319383376,8.17350127,123.19,123.17,0.0627297]
[1742319383974,0.05420127,123.19,123.17,0.0627297]
[1742319384477,0.05420127,123.19,123.18,8.1196]
[1742319384779,0.05420127,123.19,123.18,38.1596]
[1742319389580,0.05420127,123.19,123.18,49.75213404]
[1742319393383,0.05420127,123.19,123.18,38.1596]
[1742319393585,0.05420127,123.19,123.18,49.75213404]
[1742319395185,0.05420127,123.19,123.18,38.1596]
[1742319395379,0.05420127,123.19,123.17,11.65526374]
[1742319395380,0.05420127,123.19,123.17,8.1826297]
[1742319395575,0.05420127,123.19,123.17,0.0627297]
[1742319395889,0.05420127,123.19,123.18,8.1196]
[1742319396090,0.05420127,123.19,123.17,0.0627297]
[1742319396478,0.05420127,123.19,123.18,8.1196]
[1742319396686,8.17320127,123.19,123.17,0.0627297]
[1742319396887,0.05420127,123.19,123.17,0.0627297]
[1742319397482,0.05420127,123.19,123.18,19.71213404]
[1742319399190,0.05420127,123.19,123.18,8.1196]
[1742319400186,0.05420127,123.19,123.18,19.71213404]
[1742319406094,0.05420127,123.19,123.18,8.1196]
[1742319406593,8.17330127,123.19,123.17,19.77526374]
[1742319407495,0.05420127,123.19,123.17,8.1827297]
[1742319407896,0.05420127,123.19,123.18,8.1196]
[1742319408895,0.05420127,123.19,123.17,19.77516374]
[1742319409092,0.05420127,123.19,123.17,0.0627297]
[1742319409390,11.64673531,123.19,123.17,0.0627297]
[1742319409598,0.05420127,123.19,123.17,0.0627297]
[1742319411098,0.05420127,123.19,123.17,8.1825297]
[1742319411395,0.05420127,123.19,123.17,11.65526374]
[1742319411585,0.05420127,123.19,123.18,8.1196]
[1742319411785,0.05420127,123.19,123.18,19.71213404]
[1742319424509,1.27e-06,123.19,123.18,19.71213404]
[1742319425607,1.27e-06,123.19,123.18,8.1196]
[1742319425815,1.27e-06,123.19,123.17,267.9427297]
[1742319426016,11.59253531,123.19,123.14,11.59253404]
[1742319426217,2.175,123.18,123.14,41.65253404]
[1742319426808,10.2949,123.18,123.15,8.1215]
[1742319427009,10.2949,123.18,123.14,41.65253404]
[1742319427214,10.2949,123.18,123.15,11.64887462]
[1742319427414,2.175,123.18,123.15,11.64887462]
[1742319427916,2.175,123.18,123.17,8.1203]
[1742319428315,2.175,123.18,123.15,11.64887462]
[1742319428515,2.175,123.18,123.16,8.1206]
[1742319428921,2.175,123.18,123.15,11.64887462]
[1742319429219,1.27e-06,123.19,123.16,11.59253404]
[1742319429416,1.27e-06,123.19,123.17,11.59253404]
[1742319429817,1.27e-06,123.19,123.18,8.1196]
[1742319431308,11.59253531,123.19,123.15,0.05634058]
[1742319431906,1.27e-06,123.19,123.16,11.59253404]
[1742319432421,1.27e-06,123.19,123.15,11.64887462]
[1742319432718,8.11900127,123.19,123.17,8.1199]
[1742319433420,1.27e-06,123.19,123.17,8.1199]
[1742319434223,8.11900127,123.19,123.17,8.1199]
[1742319434522,8.11900127,123.19,123.16,8.1206]
[1742319435022,8.1197,123.18,123.16,8.1206]
[1742319435524,8.1197,123.18,123.15,8.17764058]
[1742319435720,8.1206,123.17,123.15,8.17764058]
[1742319435912,13.67673531,123.19,123.15,19.77017462]
[1742319435913,2.08420127,123.19,123.15,19.77017462]
[1742319436117,13.67673531,123.19,123.15,8.17764058]
[1742319436517,8.1201,123.18,123.15,8.17764058]
[1742319436719,8.1201,123.18,123.16,8.1208]
[1742319437621,8.1203,123.17,123.15,8.17774058]
[1742319438423,8.1199,123.18,123.16,8.1206]
[1742319441624,8.1199,123.18,123.15,8.17754058]
[1742319441822,8.1203,123.17,123.15,8.17754058]
[1742319442021,13.67673531,123.19,123.15,0.05634058]
[1742319442319,8.1199,123.18,123.16,8.1206]
[1742319442925,13.67673531,123.19,123.15,8.17774058]
[1742319443526,8.12,123.18,123.15,8.17774058]
[1742319443821,8.12,123.18,123.16,8.1208]
[1742319444827,21.79613531,123.19,123.16,8.1208]
[1742319445824,21.79613531,123.19,123.17,8.1202]
[1742319446022,1.27e-06,123.19,123.17,11.59253404]
[1742319446521,1.27e-06,123.19,123.18,8.1196]
[1742319451427,1.27e-06,123.19,123.18,19.71213404]
[1742319456231,1.27e-06,123.19,123.18,50.09213404]
[1742319458432,1.27e-06,123.19,123.18,8.1196]
[1742319464240,8.11900127,123.19,123.17,8.12]
[1742319464632,1.27e-06,123.19,123.17,8.12]
[1742319465335,8.11900127,123.19,123.17,8.12]
[1742319466740,1.27e-06,123.19,123.15,42.08887462]
[1742319466939,1.27e-06,123.19,123.16,11.59253404]
[1742319467536,1.27e-06,123.19,123.17,8.1203]
[1742319467840,1.27e-06,123.19,123.16,11.59253404]
[1742319468438,1.27e-06,123.19,123.17,8.1203]
[1742319469339,8.11910127,123.19,123.17,8.1203]
[1742319470936,1.27e-06,123.19,123.16,11.59253404]
[1742319472844,1.27e-06,123.19,123.18,8.1196]
[1742319474445,8.11900127,123.19,123.17,8.1199]
[1742319474845,1.27e-06,123.19,123.16,11.59253404]
[1742319475143,1.27e-06,123.19,123.17,8.1197]
[1742319475548,8.11900127,123.19,123.17,8.1197]
[1742319476244,8.1196,123.18,123.16,19.71303404]
[1742319476448,8.1196,123.18,123.16,8.1205]
[1742319476949,8.1203,123.17,123.15,306.51754058]
[1742319477845,8.1203,123.17,123.15,276.07754058]
[1742319478249,8.1203,123.17,123.15,267.95634058]
[1742319479146,8.1203,123.17,123.15,276.07794058]
[1742319479353,11.59253404,123.17,123.15,267.95634058]
[1742319479555,11.59253404,123.17,123.15,0.05634058]
[1742319480354,8.1209,123.16,123.15,0.05634058]
[1742319480852,19.71323404,123.17,123.15,0.05634058]
[1742319481250,32.3205,123.18,123.15,0.05634058]
[1742319481754,32.3205,123.18,123.15,11.64887462]
[1742319481947,32.3205,123.18,123.16,8.1209]
[1742319482354,40.4402,123.18,123.16,8.1209]
[1742319482647,11.59253404,123.17,123.15,0.05634058]
[1742319482851,11.59253404,123.16,123.11,267.92]
[1742319483051,19.71493404,123.14,123.11,267.92]
[1742319483242,19.71493404,123.14,123.11,276.0439]
[1742319483441,8.1239,123.12,123.08,11.20765337]
[1742319483653,49.89643404,123.12,123.08,19.33355337]
[1742319483855,41.77253404,123.12,123.08,11.20765337]
[1742319484055,0.056667,123.11,123.09,0.0528463]
[1742319486150,0.056667,123.11,123.09,8.1783463]
[1742319486849,0.056667,123.11,123.1,8.1249]
[1742319487350,0.056667,123.11,123.1,19.71743404]
[1742319493767,0.056667,123.11,123.09,8.1783463]
[1742319494064,11.59253404,123.1,123.09,0.0528463]
[1742319494268,19.71743404,123.1,123.09,0.0528463]
[1742319494465,11.64920104,123.11,123.09,0.0528463]
[1742319494966,30.14,123.1,123.09,8.1781463]
[1742319496870,38.2649,123.1,123.09,0.0528463]
[1742319497065,49.85743404,123.1,123.09,0.0528463]
[1742319497960,49.85743404,123.1,123.07,8.1266]
[1742319497961,8.1267,123.08,123.05,8.1279]
[1742319498159,11.59253404,123.08,123.05,8.1279]
[1742319498572,19.71913404,123.08,123.05,8.1279]
[1742319498969,11.59253404,123.08,123.06,8.127]
[1742319499183,0.06189972,123.08,123.05,0.05475866]
[1742319499365,0.06189972,123.08,123.05,11.6472927]
[1742319499561,0.06189972,123.08,123.07,19.71893404]
[1742319500771,359.0,123.16,123.07,11.59253404]
[1742319500968,4.0966,123.16,123.12,11.59253404]
[1742319501170,4.0966,123.16,123.09,286.21408622]
[1742319501373,8.1223,123.14,123.09,286.21408622]
[1742319501775,8.1223,123.14,123.12,8.1233]
[1742319501973,8.122,123.15,123.12,8.1233]
[1742319502172,0.0571683,123.14,123.12,8.18157539]
[1742319502575,0.0571683,123.14,123.13,8.1229]
[1742319508478,0.0571683,123.14,123.12,8.18147539]
[1742319508776,0.0571683,123.14,123.12,0.05827539]
[1742319509171,30.1571683,123.14,123.12,0.05827539]
[1742319509373,48.29125452,123.14,123.12,0.05827539]
[1742319510177,8.1229,123.13,123.12,0.05827539]
[1742319511276,30.1571683,123.14,123.12,8.18187539]
[1742319511779,38.2794683,123.14,123.12,8.18187539]
[1742319512572,30.1571683,123.14,123.13,8.1229]
[1742319514280,0.0571683,123.14,123.13,8.1229]
[1742319514985,0.0571683,123.14,123.12,8.18167539]
[1742319515384,0.0571683,123.14,123.12,0.05827539]
[1742319516091,0.0571683,123.14,123.13,8.1229]
[1742319520882,8.1797683,123.14,123.12,0.05827539]
[1742319521089,0.0571683,123.14,123.12,0.05827539]
[1742319521289,30.2,123.13,123.12,0.05827539]
[1742319521489,30.2,123.13,123.12,8.18187539]
[1742319523882,0.0571683,123.14,123.12,0.05827539]
[1742319524788,0.0571683,123.14,123.13,8.1229]
[1742319530791,0.0571683,123.14,123.12,0.05827539]
[1742319530792,8.1794683,123.14,123.12,8.18157539]
[1742319531393,0.0571683,123.14,123.12,8.18157539]
[1742319531696,0.0571683,123.14,123.13,8.1229]
[1742319545812,0.0571683,123.14,123.12,0.05827539]
[1742319546006,30.0971683,123.14,123.12,0.05827539]
[1742319546400,38.2196683,123.14,123.12,8.18177539]
[1742319547706,19.73049178,123.13,123.12,0.05827539]
[1742319548603,30.0971683,123.14,123.12,0.05827539]
[1742319548808,30.0971683,123.14,123.13,8.1229]
[1742319550413,0.0571683,123.14,123.13,8.1229]
[1742319551513,0.0571683,123.14,123.13,19.73049178]
[1742319551910,0.0571683,123.14,123.13,8.1229]
[1742319552215,0.0571683,123.14,123.13,19.73049178]
[1742319554612,0.0571683,123.14,123.13,8.1229]
[1742319555211,0.0571683,123.14,123.12,11.66586717]
[1742319555212,0.0571683,123.14,123.12,0.05827539]
[1742319555415,11.60759178,123.13,123.12,0.05827539]
[1742319555616,19.73049178,123.13,123.12,0.05827539]
[1742319559528,49.82736008,123.14,123.12,0.05827539]
[1742319560028,30.0971683,123.14,123.12,0.05827539]
[1742319560225,30.0971683,123.14,123.12,8.18157539]
[1742319561322,30.0971683,123.14,123.13,8.1229]
[1742319561628,30.0971683,123.14,123.12,0.05827539]
[1742319563031,38.2195683,123.14,123.12,8.18157539]
[1742319563225,0.0571683,123.14,123.12,0.05827539]
[1742319563524,0.0571683,123.14,123.13,8.1229]
[1742319563725,0.0571683,123.14,123.13,19.73049178]
[1742319565028,23.87829178,123.19,123.13,11.60759178]
[1742319565331,82.86437259,123.22,123.17,11.60759178]
[1742319565631,112.90437259,123.22,123.17,11.60759178]
[1742319565927,19.72539178,123.21,123.18,8.1193]
[1742319566119,19.72539178,123.21,123.16,11.60759178]
[1742319566328,41.70802198,123.21,123.18,0.05194407]
[1742319566523,41.70802198,123.21,123.19,8.1186]
[1742319567077,49.82572198,123.21,123.18,8.17144407]
[1742319567284,38.2181302,123.21,123.18,8.17144407]
[1742319569032,38.2181302,123.21,123.19,8.1188]
[1742319569834,30.1004302,123.21,123.19,8.1188]
[1742319570031,0.0604302,123.21,123.18,30.09194407]
[1742319570230,0.0604302,123.21,123.18,298.07194407]
[1742319570627,0.0604302,123.21,123.2,8.1183]
[1742319574430,6.3605,123.27,123.25,8.1149]
[1742319574632,59.11949533,123.31,123.22,18.11919816]
[1742319574835,8.1127,123.29,123.22,18.11919816]
[1742319575231,8.1127,123.29,123.26,8.114]
[1742319575433,8.1127,123.29,123.22,18.11919816]
[1742319575628,38.1519,123.3,123.24,0.06106562]
[1742319575838,38.1519,123.3,123.24,298.02106562]
[1742319576139,0.06058167,123.28,123.27,8.1137]
[1742319578250,0.06058167,123.28,123.26,0.05128902]
[1742319578629,8.17378167,123.28,123.26,0.05128902]
[1742319578840,0.06058167,123.28,123.26,0.05128902]
[1742319579542,0.06058167,123.28,123.26,8.16558902]
[1742319580634,0.06058167,123.28,123.27,8.1137]
[1742319582739,0.06058167,123.28,123.26,8.16548902]
[1742319583744,0.06058167,123.28,123.27,8.1137]
[1742319589245,0.06058167,123.28,123.27,19.69077118]
[1742319589645,0.06058167,123.28,123.27,49.71077118]
[1742319590349,8.167e-05,123.28,123.27,49.71077118]
[1742319594854,49.68647118,123.34,123.27,49.71077118]
[1742319594855,38.1094,123.34,123.31,8.1105]
[1742319595150,38.1094,123.34,123.3,11.57707118]
[1742319595355,30.0,123.34,123.31,11.57707118]
[1742319595555,30.0,123.34,123.32,8.1101]
[1742319595946,30.04780479,123.34,123.32,8.16508689]
[1742319596967,38.15700479,123.34,123.32,0.05498689]
[1742319597554,38.15700479,123.34,123.32,8.16528689]
[1742319598664,0.04780479,123.34,123.33,8.1097]
[1742319598961,375.2044,123.45,123.33,11.57707118]
[1742319599165,11.57707118,123.41,123.37,11.57707118]
[1742319599363,8.1053,123.4,123.37,19.68357118]
[1742319599561,8.1053,123.4,123.37,8.1065]
[1742319599762,8.1058,123.39,123.36,11.57707118]
[1742319600165,11.57707118,123.4,123.36,0.05364236]
[1742319600367,49.68187118,123.41,123.37,8.1068]
[1742319600662,41.57707118,123.41,123.36,5.84217795]
[1742319600860,49.68197118,123.41,123.37,8.1066]
[1742319601061,38.1049,123.41,123.37,8.1066]
[1742319601261,30.0,123.41,123.36,0.05364236]
[1742319601862,8.1055,123.4,123.37,8.107]
[1742319602063,30.0,123.41,123.36,0.05364236]
[1742319602967,8.1048,123.41,123.38,8.1062]
[1742319603169,24.51725106,123.43,123.36,267.67364236]
[1742319603363,8.1043,123.42,123.39,8.1057]
[1742319603668,30.0,123.44,123.38,48.06165106]
[1742319603868,38.1029,123.44,123.41,8.1042]
[1742319604061,30.0,123.44,123.39,0.05737074]
[1742319604470,18.06165106,123.43,123.39,0.05737074]
[1742319604660,18.06165106,123.43,123.36,267.62]
[1742319605078,8.1069,123.38,123.36,267.62]
[1742319605458,30.0,123.39,123.36,267.62]
[1742319605663,30.0,123.39,123.37,8.1066]
[1742319605862,30.05719853,123.39,123.36,267.67753957]
[1742319606062,8.1068,123.38,123.36,0.05753957]
[1742319606275,48.11884959,123.39,123.36,0.05753957]
[1742319606675,8.1071,123.37,123.36,0.05753957]
[1742319607679,30.05719853,123.39,123.36,0.05753957]
[1742319608685,8.1071,123.37,123.36,0.05753957]
[1742319609480,48.11884959,123.39,123.31,267.56]
[1742319609683,18.06165106,123.35,123.26,297.54]
[1742319609978,18.06165106,123.33,123.26,267.56]
[1742319610184,32.1553,123.32,123.26,267.56]
[1742319610683,0.05457231,123.3,123.28,0.05767474]
[1742319611185,0.05457231,123.3,123.28,8.17027474]
[1742319611394,0.05457231,123.3,123.28,0.05767474]
[1742319612182,0.05457231,123.3,123.29,26.17405106]
[1742319615989,0.05457231,123.3,123.28,8.17037474]
[1742319616183,0.05457231,123.3,123.28,0.05767474]
[1742319616587,0.05457231,123.3,123.28,8.17037474]
[1742319617188,0.05457231,123.3,123.29,8.1124]
[1742319619684,0.05457231,123.3,123.28,8.17037474]
[1742319619891,0.05457231,123.3,123.28,0.05767474]
[1742319620384,8.16637231,123.3,123.28,0.05767474]
[1742319620582,2.18977231,123.3,123.28,0.05767474]
[1742319620985,30.0,123.29,123.28,0.05767474]
[1742319621380,0.05457231,123.3,123.28,0.05767474]
[1742319621990,0.05457231,123.3,123.29,8.1124]
[1742319623780,0.05457231,123.3,123.29,26.17405106]
[1742319625787,2.046,123.34,123.29,26.17405106]
[1742319625788,2.1002,123.38,123.35,8.1079]
[1742319625988,32.1002,123.38,123.33,18.06165106]
[1742319626486,32.1002,123.38,123.36,8.1075]
[1742319627190,32.15739376,123.38,123.36,8.16840689]
[1742319627992,32.15739376,123.38,123.37,8.1071]
[1742319628180,0.05719376,123.38,123.37,8.1071]
[1742319629988,0.05719376,123.38,123.36,0.06090689]
[1742319630488,0.05719376,123.38,123.33,38.1094]
[1742319630695,30.0,123.37,123.33,30.0]
[1742319630894,30.0,123.37,123.32,267.62]
[1742319631695,30.0,123.37,123.35,8.108]
[1742319632996,30.0,123.37,123.33,0.0545872]
[1742319633396,32.0303,123.37,123.33,0.0545872]
[1742319634094,8.1087,123.35,123.33,8.1642872]
[1742319634297,32.0303,123.37,123.33,8.1642872]
[1742319634495,0.05591061,123.35,123.33,8.1642872]
[1742319634897,0.05591061,123.35,123.33,0.0545872]
[1742319635597,8.16461061,123.35,123.33,0.0545872]
[1742319635897,8.16461061,123.35,123.33,8.1642872]
[1742319636301,0.05591061,123.35,123.33,8.1642872]
[1742319638397,8.16441061,123.35,123.33,0.0545872]
[1742319638594,0.05591061,123.35,123.33,0.0545872]
[1742319639091,8.16461061,123.35,123.33,0.0545872]
[1742319639695,8.1091,123.34,123.33,0.0545872]
[1742319641197,8.1097,123.33,123.3,38.0913]
[1742319641402,29.98,123.34,123.27,285.64165106]
[1742319641602,2.0217,123.32,123.27,267.58]
[1742319641803,8.1125,123.29,123.27,267.58]
[1742319642302,2.1045,123.3,123.25,29.98]
[1742319642504,0.05739715,123.29,123.28,8.1126]
[1742319645701,0.05739715,123.29,123.27,0.05836391]
[1742319646607,8.17009715,123.29,123.27,0.05836391]
[1742319647205,8.113,123.28,123.27,0.05836391]
[1742319647804,8.17009715,123.29,123.27,0.05836391]
[1742319648105,0.05739715,123.29,123.27,0.05836391]
[1742319648304,0.05739715,123.29,123.28,8.113]
[1742319649008,0.05739715,123.29,123.27,8.17166391]
[1742319649210,0.05739715,123.29,123.27,0.05836391]
[1742319650007,0.05739715,123.29,123.27,8.17176391]
[1742319652617,0.05739715,123.29,123.28,8.113]
[1742319653311,0.05739715,123.29,123.27,8.17176391]
[1742319653513,8.16979715,123.29,123.27,8.17176391]
[1742319654011,8.16979715,123.29,123.27,0.05836391]
[1742319654212,8.113,123.28,123.27,0.05836391]
[1742319654401,30.0,123.28,123.27,0.05836391]
[1742319654701,30.0,123.28,123.27,8.17206391]
[1742319656012,30.0,123.28,123.27,0.05836391]
[1742319657412,30.0,123.28,123.27,8.17206391]
[1742319659909,30.0,123.28,123.27,0.05836391]
[1742319660510,38.113,123.28,123.27,0.05836391]
[1742319663312,56.18165106,123.28,123.19,1.41193654]
[1742319663511,18.06165106,123.26,123.18,2.2063]
[1742319663711,8.1163,123.23,123.21,8.117]
[1742319664513,8.117,123.22,123.21,0.05649085]
[1742319664908,30.0,123.22,123.18,8.1193]
[1742319665116,30.0,123.22,123.17,62.78606395]
[1742319665612,30.0,123.22,123.21,8.1176]